fUSD/lending_fUSD_20241003
["ID","MTS","AMOUNT","RATE_DAILY","PERIOD"]
[339766024,1727968232475,-810.0,0.00010999,2]
[339766025,1727968232484,-559.0,0.00010999,2]
[339766026,1727968232493,-554.0,0.00010999,2]
[339766027,1727968232502,-1905.0,0.00010999,2]
[339766028,1727968232511,-1910.0,0.00010999,2]
[339766029,1727968232521,-3351.0,0.00010999,2]
[339766030,1727968232531,-807.0,0.00010999,2]
[339766031,1727968232540,-150.01,0.00010999,2]
[339766032,1727968232552,-1000.0,0.00010999,2]
[339766033,1727968232561,-1000.0,0.00010999,2]
[339766034,1727968232570,-1000.0,0.00010999,2]
[339766035,1727968232579,-159.78452694,0.00010999,2]
[339766036,1727968232589,-169.0686501,0.00010999,2]
[339766037,1727968232598,-500.0,0.00010999,2]
[339766038,1727968232607,-500.0,0.00010999,2]
[339766039,1727968232617,-500.0,0.00010999,2]
[339766040,1727968232626,-500.0,0.00010999,2]
[339766041,1727968232636,-500.0,0.00010999,2]
[339766042,1727968232645,-500.0,0.00010999,2]
[339766043,1727968232655,-155.34636769,0.00010999,2]
[339766044,1727968232663,-500.0,0.00010999,2]
[339766045,1727968232672,-500.0,0.00010999,2]
[339766046,1727968232682,-500.68734814,0.00010999,2]
[339766047,1727968232692,-461.70515196,0.00010999,2]
[339766048,1727968232701,-500.0,0.00010999,2]
[339766049,1727968232710,-570.0,0.00011,2]
[339766050,1727968232722,-261146.97019049,0.00011,2]
[339766051,1727968232734,-1086.23973703,0.00011,2]
[339766052,1727968232746,-5673.50863488,0.00011,2]
[339766053,1727968232765,-245896.55433139,0.00011,2]
[339766054,1727968232774,-344557.93712302,0.00011,2]
[339766055,1727968232786,-544.02,0.00011,2]
[339766056,1727968232798,-548.6778876,0.00011,2]
[339766057,1727968232809,-1182.73708964,0.00011,2]
[339766058,1727968232820,-3137.82155,0.00011,2]
[339766059,1727968232847,-527981.49347122,0.00011,2]
[339766060,1727968232858,-603.03497768,0.00011,2]
[339766061,1727968232869,-777.95581629,0.00011,2]
[339766062,1727968232880,-475.92038193,0.00011,2]
[339766063,1727968232896,-630.08,0.00011,2]
[339766064,1727968232907,-765.29022052,0.00011,2]
[339766065,1727968232919,-980.23063339,0.00011,2]
[339766066,1727968232930,-5599.02414876,0.00011,2]
[339766067,1727968232941,-3576.97871244,0.00011,2]
[339766068,1727968232952,-4477.92071747,0.00011,2]
[339766069,1727968232964,-2135.8388,0.00011,2]
[339766070,1727968232975,-10552.6900996,0.00011,2]
[339766071,1727968232986,-1023.36525247,0.00011,2]
[339766072,1727968232998,-696.77431602,0.00011,2]
[339766073,1727968233009,-315.40449296,0.00011,2]
[339766074,1727968233021,-5358.14760315,0.00011,2]
[339766075,1727968233514,-1.18893112,0.00011,2]
[339766076,1727968233526,-300.75376989,0.00011,2]
[339766077,1727968233538,-933.15713572,0.00011,2]
[339766082,1727968237629,-714.57829354,0.00010337,2]
[339766083,1727968237638,-889.36731734,0.00011,2]
[339766084,1727968237648,-514.0,0.00011,2]
[339766085,1727968237657,-1999.79503169,0.00011,2]
[339766086,1727968237668,-799.82339141,0.00011,2]
[339766087,1727968237679,-4398.73486,0.00011,2]
[339766094,1727968239590,-714.57829353,0.00010372,2]
[339766095,1727968239599,-4896.16801257,0.00011,2]
[339766096,1727968239610,-2437.50003,0.00011,2]
[339766097,1727968239667,-1229.11830886,0.00011,2]
[339766098,1727968239678,-405.69,0.00011,2]
[339766099,1727968239942,-1082.0,0.0001091,2]
[339766100,1727968239952,-13770.17036547,0.00011,2]
[339766101,1727968239961,-449709.45953181,0.00011,2]
[339766107,1727968242630,-306.38000006,0.00011,2]
[339766109,1727968242641,-1858.93673647,0.00011,2]
[339766111,1727968242682,-838355.69726767,0.00011,2]
[339766112,1727968242840,-1095.78215054,0.00011,2]
[339766113,1727968242900,-20135.89229752,0.00011,2]
[339766114,1727968242912,-2581.2614539,0.00011,2]
[339766115,1727968242923,-8823.6328315,0.00011,2]
[339766154,1727968246413,-12340.284517,0.00011,2]
[339766155,1727968246426,-1255.34,0.00011,2]
[339766156,1727968246520,-402.5699328,0.00011,2]
[339766157,1727968246533,-1895.63286145,0.00011,2]
[339766158,1727968246559,-580.4,0.00011,2]
[339766159,1727968246577,-290.78750001,0.00011,2]
[339766160,1727968246590,-337.975,0.00011,2]
[339766161,1727968246603,-4865.54622921,0.00011,2]
[339766162,1727968246620,-8860.00502439,0.00011,2]
[339766163,1727968246633,-4943.43172972,0.00011,2]
[339766164,1727968292232,150.0,0.00010154,2]
[339766165,1727968292254,108.49,0.00010154,2]
[339766168,1727968675799,150.0,8.278e-05,2]
[339766169,1727968675821,150.0,8.278e-05,2]
[339766170,1727968675842,148.6,8.278e-05,2]
[339766171,1727968696952,150.0,0.00010182,2]
[339766172,1727968696974,44.51,0.00010182,2]
[339766173,1727968736450,415.16,0.00015,30]
[339766174,1727969020244,1000.0,0.00010158,2]
[339766176,1727969084533,372.37,0.00010213,2]
[339766177,1727969102706,150.0,9.888e-05,2]
[339766178,1727969113421,150.0,9.888e-05,2]
[339766182,1727969207485,483.36,8.29e-05,2]
[339766183,1727969208000,250.0,0.00010207,2]
[339766185,1727969276213,750.0,0.0001,2]
[339766216,1727969431850,-150.0,0.00010254,2]
[339766217,1727969431861,-150.0,0.00010254,2]
[339766218,1727969431870,-483.36,0.00010553,2]
[339766219,1727969431879,-150.0,0.0001062,2]
[339766220,1727969431890,-67.035,0.0001062,2]
[339766221,1727969431920,-82.965,0.0001062,2]
[339766222,1727969431929,-179.36,0.00010732,2]
[339766223,1727969431938,-357.28914678,0.00010799,2]
[339766224,1727969431948,-357.28914676,0.000108,2]
[339766225,1727969431957,-300.0,0.00010899,2]
[339766226,1727969431966,-150.0,0.00010899,2]
[339766227,1727969431975,-226.1043,0.000109,2]
[339766228,1727969431984,-1460.10240646,0.000109,2]
[339766229,1727969432065,-833.77634992,0.000109,2]
[339766246,1727969437786,-621.29,0.000109,2]
[339766247,1727969437798,-269.39094362,0.000109,2]
[339766249,1727969437807,-1356.22491744,0.000109,2]
[339766250,1727969437818,-1001.58224218,0.000109,2]
[339766251,1727969437828,-213.91036868,0.000109,2]
[339766252,1727969437839,-1134.00892705,0.000109,2]
[339766253,1727969437859,-20349.77580427,0.000109,2]
[339766254,1727969437868,-17069.3686,0.000109,2]
[339766255,1727969437878,-167.49616479,0.000109,2]
[339766256,1727969437887,-900.45207265,0.000109,2]
[339766257,1727969437899,-404.10522382,0.000109,2]
[339766258,1727969437908,-465.84460876,0.000109,2]
[339766259,1727969437917,-404.10522377,0.00010903,2]
[339766260,1727969437926,-404.10522377,0.00010906,2]
[339766261,1727969437935,-404.10522377,0.00010908,2]
[339766262,1727969437945,-404.10522377,0.00010911,2]
[339766263,1727969437955,-404.10522377,0.00010914,2]
[339766264,1727969437964,-404.10522377,0.00010917,2]
[339766265,1727969437974,-404.10522377,0.00010919,2]
[339766266,1727969437984,-404.10522377,0.00010922,2]
[339766267,1727969437993,-404.10522377,0.00010925,2]
[339766268,1727969438003,-406.43,0.00010941,2]
[339766269,1727969438013,-164.53,0.00010959,2]
[339766270,1727969438023,-250.0,0.00010959,2]
[339766271,1727969438032,-205.36,0.00010959,2]
[339766272,1727969438042,-167.161,0.00010959,2]
[339766273,1727969438051,-334.761,0.00010959,2]
[339766274,1727969438061,-464.57,0.00010959,2]
[339766275,1727969438070,-1910.11,0.00010959,2]
[339766276,1727969438080,-165.07917581,0.00010986,2]
[339766277,1727969438089,-150.0,0.00010986,2]
[339766278,1727969438099,-150.0,0.00010999,2]
[339766279,1727969438108,-810.0,0.00010999,2]
[339766280,1727969438118,-934.0,0.00010999,2]
[339766281,1727969438127,-559.0,0.00010999,2]
[339766282,1727969438137,-1905.0,0.00010999,2]
[339766283,1727969438150,-554.0,0.00010999,2]
[339766284,1727969438160,-807.0,0.00010999,2]
[339766285,1727969438169,-1910.0,0.00010999,2]
[339766286,1727969438178,-3351.0,0.00010999,2]
[339766287,1727969438188,-299.99,0.00010999,2]
[339766288,1727969438197,-1082.0,0.00010999,2]
[339766289,1727969438206,-5874.0,0.00010999,2]
[339766290,1727969438216,-1297.0,0.00010999,2]
[339766291,1727969438225,-449.0,0.00010999,2]
[339766292,1727969438234,-626.0,0.00010999,2]
[339766293,1727969438243,-150.0,0.00010999,2]
[339766294,1727969438253,-1264.0,0.00010999,2]
[339766295,1727969438262,-1000.0,0.00010999,2]
[339766296,1727969438271,-1000.0,0.00010999,2]
[339766297,1727969438280,-513.0,0.00011,2]
[339766298,1727969438289,-466268.53782345,0.00011,2]
[339766299,1727969438298,-889.36731734,0.00011,2]
[339766300,1727969438308,-1983890.43447718,0.00011,2]
[339766301,1727969438319,-31142.6233019,0.00011,2]
[339766302,1727969438334,-5646.67844639,0.00011,2]
[339766303,1727969438345,-8055.23879857,0.00011,2]
[339766304,1727969438356,-1953.74880888,0.00011,2]
[339766305,1727969438367,-1251.25,0.00011,2]
[339766306,1727969438473,-10942.58864569,0.00011,2]
[339766307,1727969438486,-329270.27111953,0.00011,2]
[339766308,1727969438499,-1091.25239402,0.00011,2]
[339766309,1727969438516,-18621.31359874,0.00011,2]
[339766310,1727969439973,-72029.78058608,0.00011,2]
[339766311,1727969439985,-5023.99999999,0.00011,2]
[339766312,1727969440025,-6909.0,0.00011,2]
[339766313,1727969440075,-600.0,0.00011,2]
[339766314,1727969440188,-310.435,0.00011,2]
[339766315,1727969440206,-2094.33540211,0.00011,2]
[339766316,1727969440217,-2855.97603472,0.00011,2]
[339766317,1727969440228,-17912.61485738,0.00011,2]
[339766318,1727969440239,-263.494,0.00011,2]
[339766319,1727969440262,-847.9,0.00011,2]
[339766320,1727969440273,-674.9983212,0.00011,2]
[339766321,1727969440283,-494.82250729,0.00011,2]
[339766322,1727969440294,-499.39408115,0.00011,2]
[339766362,1727969442921,-2180.37715403,0.00010999,2]
[339766364,1727969442932,-434.12000044,0.00010999,2]
[339766366,1727969442943,-4730.285,0.00010999,2]
[339766368,1727969442954,-6162.21784553,0.00010999,2]
[339766370,1727969442963,-1183.33958717,0.00011,2]
[339766372,1727969442974,-29774.60931259,0.00011,2]
[339766374,1727969442985,-32662.83774857,0.00011,2]
[339766382,1727969443122,-10993.001,0.00011,2]
[339766384,1727969443133,-1250.0,0.00011,2]
[339766385,1727969443145,-26133.99524916,0.00011,2]
[339766387,1727969443164,-1746.35459375,0.00011,2]
[339766389,1727969443175,-758.49771291,0.00011,2]
[339766391,1727969443187,-542.2,0.00011,2]
[339766392,1727969443199,-759.99998,0.00011,2]
[339766395,1727969443210,-710.0,0.00011,2]
[339766402,1727969443307,-298.10248307,0.00011,2]
[339766403,1727969443318,-2491.24,0.00011,2]
[339766404,1727969443329,-5049.99999962,0.00011,2]
[339766451,1727969445878,-631.49999999,0.000109,2]
[339766452,1727969445891,-333.8907144,0.000109,2]
[339766453,1727969445900,-419.0467856,0.00010999,2]
[339766454,1727969445911,-281.74546058,0.00010999,2]
[339766455,1727969445925,-447.20775382,0.00010999,2]
[339766456,1727969445935,-5387.66661542,0.00011,2]
[339766457,1727969446225,-7151.24371628,0.00011,2]
[339766458,1727969446255,-6202.88510714,0.00011,2]
[339766459,1727969446266,-425.7695,0.00011,2]
[339766460,1727969446277,-1581.995,0.00011,2]
[339766461,1727969446295,-12025.6277018,0.00011,2]
[339766462,1727969446310,-6236.23,0.00011,2]
[339766463,1727969446321,-255.00000002,0.00011,2]
[339766466,1727969446360,-602.34500584,0.00011,2]
[339766469,1727969471189,6509.0,0.000102,5]
[339766470,1727969778535,250.0,0.0001004,2]
[339766471,1727969818484,152.36,0.0001004,2]
[339766472,1727969893227,150.0,8.219e-05,2]
[339766473,1727969893251,150.0,8.219e-05,2]
[339766474,1727969893272,150.0,8.219e-05,2]
[339766475,1727969893293,38.54,8.219e-05,2]
[339766476,1727969905318,1209.98,0.00015,30]
[339766477,1727969927030,150.0,0.00010024,2]
[339766478,1727969927050,100.0,0.00010024,2]
[339766479,1727969957810,-271.88,0.00010371,2]
[339766480,1727969957831,-186.5,0.00010429,2]
[339766481,1727969957852,-541.62,0.00010429,2]
[339766482,1727969961101,-1000.0,0.00010429,2]
[339766483,1727969963630,-596.94,0.00010429,2]
[339766484,1727969963652,-403.06,0.00010479,2]
[339766485,1727969966182,-85.48,0.00010479,2]
[339766486,1727969966201,-189.98,0.00010567,2]
[339766487,1727969966221,-200.0,0.00010686,2]
[339766488,1727969966242,-524.54,0.00010894,2]
[339766489,1727969968818,-562.2722,0.00010894,2]
[339766490,1727969968840,-437.7278,0.00010899,2]
[339766491,1727969970396,-556.33970055,0.00010899,2]
[339766492,1727969970417,-150.0,0.00010899,2]
[339766493,1727969970440,-293.66029945,0.00010899,2]
[339766494,1727969972228,-700.40720104,0.00010899,2]
[339766495,1727969972250,-299.59279896,0.00010899,2]
[339766496,1727969974890,-694.47470153,0.00010899,2]
[339766497,1727969974913,-305.52529847,0.00010899,2]
[339766498,1727969977199,-688.54220202,0.00010899,2]
[339766499,1727969977220,-311.45779798,0.00010899,2]
[339766500,1727969979754,-682.60970251,0.00010899,2]
[339766501,1727969979775,-158.61,0.00010899,2]
[339766502,1727969979797,-158.78029749,0.000109,2]
[339766503,1727969982410,-835.287203,0.000109,2]
[339766504,1727969982432,-164.712797,0.000109,2]
[339766505,1727969985260,-637.4473,0.00010799,2]
[339766506,1727969985282,-362.5527,0.000109,2]
[339766507,1727969988537,-466.80200349,0.000109,2]
[339766508,1727969988559,-533.19799651,0.000109,2]
[339766509,1727969994884,-300.0,0.000109,2]
[339766519,1727970024032,-1679.02730349,0.000109,2]
[339766520,1727970024057,-920.97269651,0.000109,2]
[339766523,1727970309339,150.0,9.888e-05,2]
[339766524,1727970309673,150.0,0.00010107,2]
[339766525,1727970312813,150.0,9.888e-05,2]
[339766526,1727970313523,-150.0,0.00010254,2]
[339766527,1727970321032,150.0,9.888e-05,2]
[339766528,1727970326314,250.0,0.00010127,2]
[339766529,1727970330837,150.0,9.888e-05,2]
[339766530,1727970338906,237.93,0.00010127,2]
[339766531,1727970400798,486.21,8.219e-05,2]
[339766533,1727970446148,183.45,0.00010092,2]
[339766534,1727970459814,150.0,0.00010111,2]
[339766535,1727970459835,150.0,0.00010111,2]
[339766536,1727970459858,150.0,0.00010111,2]
[339766537,1727970459880,150.0,0.00010111,2]
[339766538,1727970459901,150.0,0.00010111,2]
[339766539,1727970459923,150.0,0.00010111,2]
[339766540,1727970459951,100.0,0.00010111,2]
[339766541,1727970468295,50.0,0.00010111,2]
[339766542,1727970468316,123.44,0.00010111,2]
[339766550,1727970632017,-150.0,0.00010327,2]
[339766551,1727970632028,-325.14,0.00010374,2]
[339766552,1727970632038,-486.21,0.00010481,2]
[339766553,1727970632048,-150.0,0.00010547,2]
[339766554,1727970632058,-150.0,0.0001062,2]
[339766555,1727970632070,-150.0,0.00010767,2]
[339766556,1727970632080,-2512.0055,0.000108,2]
[339766557,1727970632090,-300.0,0.00010899,2]
[339766558,1727970632100,-633.60290349,0.000109,2]
[339766559,1727970632111,-1475.3221,0.000109,2]
[339766560,1727970632121,-817.7258,0.000109,2]
[339766561,1727970632131,-13268.6891,0.000109,2]
[339766562,1727970632144,-3449.011,0.000109,2]
[339766563,1727970632154,-6712.7032,0.000109,2]
[339766564,1727970632165,-945.5484,0.000109,2]
[339766565,1727970632175,-860.4956,0.000109,2]
[339766566,1727970632186,-2982.20250147,0.000109,2]
[339766567,1727970632197,-310.5630725,0.000109,2]
[339766568,1727970632207,-4095.61624782,0.000109,2]
[339766570,1727970632217,-1000.0,0.000109,2]
[339766572,1727970632227,-151.71,0.00010959,2]
[339766574,1727970632238,-302.86,0.00010959,2]
[339766576,1727970632248,-165.57,0.00010959,2]
[339766578,1727970632258,-347.807,0.00010959,2]
[339766579,1727970632268,-167.16258322,0.00010959,2]
[339766580,1727970632278,-306.41,0.00010959,2]
[339766582,1727970632289,-209.18594067,0.00010986,2]
[339766583,1727970632300,-150.0,0.00010986,2]
[339766584,1727970632310,-150.0,0.00010986,2]
[339766585,1727970632320,-150.26,0.0001099,2]
[339766586,1727970632331,-150.26,0.0001099,2]
[339766587,1727970632341,-150.26,0.0001099,2]
[339766588,1727970632351,-150.26,0.0001099,2]
[339766589,1727970632362,-150.26,0.0001099,2]
[339766590,1727970632373,-150.26,0.0001099,2]
[339766591,1727970632383,-150.26,0.0001099,2]
[339766592,1727970632396,-150.26,0.0001099,2]
[339766593,1727970632407,-150.26,0.0001099,2]
[339766594,1727970632417,-150.26,0.0001099,2]
[339766595,1727970632427,-150.26,0.0001099,2]
[339766596,1727970632438,-150.26,0.0001099,2]
[339766597,1727970632448,-150.26,0.0001099,2]
[339766598,1727970632458,-150.26,0.0001099,2]
[339766599,1727970632469,-150.26,0.0001099,2]
[339766600,1727970632479,-150.26,0.0001099,2]
[339766601,1727970632491,-150.26,0.0001099,2]
[339766602,1727970632501,-150.26,0.0001099,2]
[339766603,1727970632512,-150.26,0.0001099,2]
[339766604,1727970632523,-6189.3131915,0.00010994,2]
[339766605,1727970632533,-7067.0971223,0.00010994,2]
[339766606,1727970632543,-4696.4110725,0.00010994,2]
[339766607,1727970632553,-3612.0482639,0.00010994,2]
[339766608,1727970632563,-11092.922534,0.00010994,2]
[339766609,1727970632573,-626.0,0.00010999,2]
[339766610,1727970632584,-449.0,0.00010999,2]
[339766611,1727970632594,-1264.0,0.00010999,2]
[339766612,1727970632604,-1297.0,0.00010999,2]
[339766613,1727970632615,-810.0,0.00010999,2]
[339766614,1727970632625,-559.0,0.00010999,2]
[339766615,1727970632635,-934.0,0.00010999,2]
[339766616,1727970632645,-150.0,0.00010999,2]
[339766617,1727970632655,-554.0,0.00010999,2]
[339766618,1727970632666,-1905.0,0.00010999,2]
[339766619,1727970632679,-1910.0,0.00010999,2]
[339766620,1727970632689,-807.0,0.00010999,2]
[339766621,1727970632700,-3351.0,0.00010999,2]
[339766622,1727970632710,-150.0,0.00010999,2]
[339766623,1727970632721,-5874.0,0.00010999,2]
[339766624,1727970632733,-1148.0,0.00010999,2]
[339766625,1727970632747,-13507.0,0.00010999,2]
[339766626,1727970632757,-1434.95993059,0.00010999,2]
[339766627,1727970632767,-1000.0,0.00010999,2]
[339766628,1727970632779,-1000.0,0.00010999,2]
[339766629,1727970632789,-1000.0,0.00010999,2]
[339766630,1727970632799,-1000.0,0.00010999,2]
[339766631,1727970632809,-557.0,0.00011,2]
[339766632,1727970632820,-153270.14597743,0.00011,2]
[339766633,1727970633420,-311.315,0.00011,2]
[339766640,1727970637966,-150.0,0.00010999,2]
[339766641,1727970637975,-361.27037593,0.00011,2]
[339766642,1727970637989,-24738.89334722,0.00011,2]
[339766643,1727970638259,-431.55282592,0.00011,2]
[339766644,1727970638316,-677.06162226,0.00011,2]
[339766648,1727970638953,-431.55282592,0.00010449,2]
[339766649,1727970640281,-17.74420354,0.00010449,2]
[339766650,1727970640290,-89.40823892,0.00010999,2]
[339766651,1727970640348,-672.3295321,0.00010999,2]
[339766652,1727970640359,-320.26222898,0.00010999,2]
[339766653,1727970640368,-2092.48008824,0.00011,2]
[339766654,1727970640380,-4591.81588462,0.00011,2]
[339766655,1727970640393,-806.98500003,0.00011,2]
[339766656,1727970640966,-5257.54465383,0.00011,2]
[339766657,1727970640978,-400.84895135,0.00011,2]
[339766658,1727970640997,-5876.33786434,0.00011,2]
[339766659,1727970641008,-5796.46753986,0.00011,2]
[339766660,1727970641030,-63225.76525653,0.00011,2]
[339766665,1727970643077,-908.00465528,0.00011,2]
[339766666,1727970643090,-3674.2143007,0.00011,2]
[339766667,1727970643102,-2136.17160078,0.00011,2]
[339766668,1727970643113,-607.00378439,0.00011,2]
[339766669,1727970643150,-454.92175329,0.00011,2]
[339766670,1727970643162,-523.06001464,0.00011,2]
[339766671,1727970643175,-605.70812265,0.00011,2]
[339766672,1727970643186,-40007.47351251,0.00011,2]
[339766673,1727970643197,-4697.08922901,0.00011,2]
[339766674,1727970643207,-1973.28541823,0.00011,2]
[339766675,1727970643218,-305.20127118,0.00011,2]
[339766676,1727970643229,-432.89653833,0.00011,2]
[339766677,1727970643240,-1117.28317245,0.00011,2]
[339766678,1727970643255,-17459.92421963,0.00011,2]
[339766679,1727970643270,-485.29999995,0.00011,2]
[339766680,1727970643281,-709.17,0.00011,2]
[339766681,1727970643292,-72648.93129725,0.00011,2]
[339766682,1727970643302,-800.43058561,0.00011,2]
[339766683,1727970643311,-1912139.6081527,0.00011,2]
[339766684,1727970643322,-4200.0,0.00011,2]
[339766685,1727970643334,-2005.80185951,0.00011,2]
[339766686,1727970643358,-2754.31674355,0.00011,2]
[339766687,1727970643369,-341.88491473,0.00011,2]
[339766688,1727970643381,-412.1753019,0.00011,2]
[339766689,1727970643392,-4445.23740939,0.00011,2]
[339766703,1727970643937,-19092.36740776,0.00011,2]
[339766704,1727970643949,-534.74855496,0.00011,2]
[339766705,1727970643960,-363.33683964,0.00011,2]
[339766706,1727970643971,-505.5664408,0.00011,2]
[339766707,1727970643999,-671.32315737,0.00011,2]
[339766708,1727970644012,-1023.82317081,0.00011,2]
[339766709,1727970644024,-608.71372197,0.00011,2]
[339766710,1727970644034,-636.87818,0.00011,2]
[339766711,1727970644046,-827.30933768,0.00011,2]
[339766712,1727970644057,-471.44131326,0.00011,2]
[339766725,1727970645990,-1626.60634085,0.00011,2]
[339766726,1727970646002,-189480.98509995,0.00011,2]
[339766727,1727970646013,-774.59705695,0.00011,2]
[339766728,1727970646024,-572.08599567,0.00011,2]
[339766729,1727970646044,-2836.89857251,0.00011,2]
[339766730,1727970646055,-1033.35696431,0.00011,2]
[339766731,1727970646068,-22579.57251968,0.00011,2]
[339766732,1727970646079,-544.14569313,0.00011,2]
[339766733,1727970646092,-268.25,0.00011,2]
[339766734,1727970646103,-40531.55046532,0.00011,2]
[339766735,1727970646114,-9829.36236204,0.00011,2]
[339766736,1727970646126,-3031.86817983,0.00011,2]
[339766737,1727970646150,-1207.9555414,0.00011,2]
[339766738,1727970646162,-4296.75088854,0.00011,2]
[339766739,1727970646180,-1140.97488748,0.00011,2]
[339766740,1727970646192,-2701.23101814,0.00011,2]
[339766741,1727970646203,-5164.28147376,0.00011,2]
[339766742,1727970646214,-5771.89169257,0.00011,2]
[339766743,1727970646226,-42662.56565596,0.00011,2]
[339766744,1727970646237,-514.16547263,0.00011,2]
[339766745,1727970646249,-7243.92475302,0.00011,2]
[339766746,1727970646260,-299.07844765,0.00011,2]
[339766747,1727970646271,-3627.57220054,0.00011,2]
[339766748,1727970646282,-5210.14308199,0.00011,2]
[339766749,1727970646294,-442.82396974,0.00011,2]
[339766750,1727970646304,-542.79318473,0.00011,2]
[339766751,1727970646315,-1675.74849414,0.00011,2]
[339766752,1727970646326,-14215.85805118,0.00011,2]
[339766753,1727970646337,-2772.72018654,0.00011,2]
[339766754,1727970646348,-430.72220257,0.00011,2]
[339766755,1727970646360,-5942.42976688,0.00011,2]
[339766756,1727970646371,-450.32840369,0.00011,2]
[339766757,1727970646382,-147799.02933252,0.00011,2]
[339766758,1727970646393,-70482.63596456,0.00011,2]
[339766759,1727970646409,-8385.9918445,0.00011,2]
[339766760,1727970646420,-2034.76206701,0.00011,2]
[339766761,1727970646431,-8694.57112734,0.00011,2]
[339766762,1727970646442,-1041.98334023,0.00011,2]
[339766764,1727970646460,-2461.2845883,0.00011,2]
[339766765,1727970646471,-1079.82624402,0.00011,2]
[339766766,1727970646482,-1089.88117537,0.00011,2]
[339766767,1727970646493,-4506.63722945,0.00011,2]
[339766768,1727970646506,-2600.60967681,0.00011,2]
[339766769,1727970646517,-319.0,0.00011,2]
[339766770,1727970646528,-3213.00530478,0.00011,2]
[339766771,1727970646539,-2372.81520537,0.00011,2]
[339766772,1727970646551,-357.56409185,0.00011,2]
[339766773,1727970646562,-69307.81672762,0.00011,2]
[339766774,1727970646573,-858.99079704,0.00011,2]
[339766775,1727970646585,-16344.51668327,0.00011,2]
[339766776,1727970646608,-329.20700671,0.00011,2]
[339766777,1727970646620,-405.8537147,0.00011,2]
[339766778,1727970646631,-1744.32203037,0.00011,2]
[339766779,1727970646642,-417.95823573,0.00011,2]
[339766780,1727970646657,-1217.64466643,0.00011,2]
[339766781,1727970646668,-422.91126348,0.00011,2]
[339766782,1727970646679,-547.44,0.00011,2]
[339766783,1727970646690,-1373.16223695,0.00011,2]
[339766784,1727970646701,-31083.42753148,0.00011,2]
[339766785,1727970646712,-17061.62315174,0.00011,2]
[339766786,1727970849694,-200.9,0.00010321,2]
[339766787,1727970849716,-1298.76372823,0.00010449,2]
[339766788,1727970879116,-238.33627177,0.00010785,2]
[339766789,1727970904440,150.0,0.00010199,2]
[339766790,1727970904462,100.0,0.00010199,2]
[339766791,1727970914540,-183.97372823,0.00010785,2]
[339766792,1727970970057,200.0,0.00010222,2]
[339766793,1727971049510,16.02627177,0.00010176,2]
[339766794,1727971049531,50.0,0.00010176,2]
[339766795,1727971049552,131.03372823,0.00010176,2]
[339766796,1727971052361,18.96627177,0.00010176,2]
[339766797,1727971052384,135.68372823,0.00010176,2]
[339766798,1727971053704,14.31627177,0.00010188,2]
[339766799,1727971053730,140.33372823,0.00010188,2]
[339766800,1727971054031,108.35627177,0.00010201,2]
[339766801,1727971054061,46.29372823,0.00010201,2]
[339766802,1727971054241,154.65,0.00010214,2]
[339766803,1727971073563,150.0,8.219e-05,2]
[339766804,1727971073583,247.51717408,8.219e-05,2]
[339766805,1727971073607,95.71282592,8.219e-05,2]
[339766806,1727971106041,250.0,0.00010064,2]
[339766807,1727971110819,278.246,0.00010021,2]
[339766808,1727971123544,207.04204834,0.00010127,2]
[339766809,1727971142110,300.0,0.00010225,2]
[339766810,1727971152753,175.83709417,0.00010126,2]